Cogmind - Beta 10.2 @@@ ROGUE MODE // 2021.03.12 @ 18:50:22 Player: NuggetPls Result: Destroyed by G-34 Mercenary with Small Laser Performance ------------- Evolutions (1) 500 Regions Visited (4) 800 Robots Destroyed (18) 90 Value Destroyed (515) 515 Prototype IDs (0) 0 Alien Tech Used (0) 0 Bonus (700) 700 TOTAL SCORE: 2605 Bonus ------- Entered Garrisons 200 Used RIF Installer 500 Cogmind --------- Core Integrity 0/400 Matter 261/300 Energy 156/160 System Corruption 1% Temperature Cool (8) Movement Walking (120) Location -9/Garrison Parts ------- > --- POWER (1) -------- Light Nuclear Core > --- PROPULSION (3) --- Aluminum Leg Aluminum Leg > --- UTILITY (3) ------ (None) > --- WEAPON (2) ------- (None) > --- INVENTORY (4) ---- Light Ion Engine Peak State ------------ > --- POWER ------------ Improved Ion Engine > --- PROPULSION ------- Aluminum Leg Aluminum Leg Improved Aluminum Leg > --- UTILITY ---------- Weight Redist. System Hardened Light Armor Plating Hardened Light Armor Plating > --- WEAPON ----------- Medium Laser Rocket Launcher > --- INVENTORY -------- Light Ion Engine Light Nuclear Core Aluminum Leg Aluminum Leg [Rating: 15] Favorites ----------- Power Improved Ion Engine Engine Improved Ion Engine Power Core Light Nuclear Core Propulsion Aluminum Leg Leg Aluminum Leg Utility Small Storage Unit Device Weight Redist. System Storage Small Storage Unit Protection Power Shielding Weapon Assault Rifle Energy Gun EM Pulse Gun Ballistic Gun Assault Rifle Ballistic Cannon Improved Light Cannon Launcher Rocket Launcher Build | -11 -10 -9 -9 -9 ------- Run | Scr Mat Mat Sto Gar Slots Evolved 2 | . . 2 . . Power . | . . . . . Propulsion 1 | . . 1 . . Utility 1 | . . 1 . . Weapon . | . . . . . Parts Attached 39 | 9 13 9 5 3 Power 6 | 1 3 1 . 1 Engine 4 | 1 2 1 . . Core 2 | . 1 . . 1 Reactor . | . . . . . Propulsion 12 | 2 5 3 . 2 Treads . | . . . . . Leg 12 | 2 5 3 . 2 Wheel . | . . . . . Hover . | . . . . . Flight . | . . . . . Utility 6 | 2 1 1 2 . Device 1 | . . 1 . . Storage 2 | 2 . . . . Processor . | . . . . . Hackware . | . . . . . Protection 3 | . 1 . 2 . Artifact . | . . . . . Weapon 15 | 4 4 4 3 . Energy Gun 3 | 1 1 . 1 . Energy Cannon . | . . . . . Ballistic Gun 10 | 3 3 4 . . Ballistic Cannon 1 | . . . 1 . Launcher 1 | . . . 1 . Special Weapon . | . . . . . Impact Weapon . | . . . . . Slashing Weapon . | . . . . . Piercing Weapon . | . . . . . Special Melee Weapon . | . . . . . Unidentified Prototypes . | . . . . . Parts Lost 13 | . 1 2 10 . Power 1 | . . . 1 . Propulsion 3 | . . . 3 . Utility 3 | . . . 3 . Weapon 6 | . 1 2 3 . Highest Loss Streak 6 | . 1 2 6 . Average Slot Usage (%) 89 | . 93 98 76 33 Engine 11 | . 13 11 10 . Leg 29 | . 28 33 31 22 Device 4 | . . 10 5 . Storage 10 | . 14 11 3 . Protection 9 | . 8 11 13 . Energy Gun 4 | . 7 . 6 . Ballistic Gun 16 | . 19 21 . . Naked Turns 3 | . . . 3 . Heaviest Build 23 | 13 13 15 23 5 Greatest Support 39 | 20 20 39 39 20 Greatest Overweight (x) . | . . . . . Average Overweight (x) . | . . . . . Largest Inventory Capacity 6 | 6 6 6 6 4 Average Capacity 5 | 5 6 6 4 4 Most Carried 6 | 4 6 6 6 3 Average Carried 4 | 1 5 5 4 1 Final Capacity 6 | 6 6 6 4 4 Final Carried 6 | 4 6 6 4 1 Class Distribution -------------------- 71% | Mutant 28% | Scavenger-Mutant Dominant Class ---------------- Mutant | -10/Materials Scavenger-Mutant | -9/Materials Mutant | -9/Storage Mutant | -9/Garrison Resources | -11 -10 -9 -9 -9 ----------- Run | Scr Mat Mat Sto Gar Matter Collected 770 | 212 331 202 25 . Remotely . | . . . . . Salvage Created 609 | . 341 268 . . Parts 38 | . 17 21 . . Haulers Intercepted . | . . . . . Recyclers Shooed . | . . . . . Parts Field Recycled . | . . . . . Retrieved Matter . | . . . . . Parts Self-Destructed . | . . . . . Prevented . | . . . . . Kills | -11 -10 -9 -9 -9 ------- Run | Scr Mat Mat Sto Gar Combat Hostiles Destroyed 18 | . 8 10 . . Guns 17 | . 7 10 . . AOE 1 | . 1 . . . Classes Destroyed 3 | . 1 2 . . Swarmer 6 | . . 6 . . Grunt 11 | . 8 3 . . Sentry 1 | . . 1 . . Best Kill Streak 3 | . 2 3 . . Combat Bots Only 3 | . 2 3 . . Max Kills in Single Turn 1 | . 1 1 . . Gunslinging . | . . . . . Exploded 1 | . 1 . . . Melee . | . . . . . Uniques/NPCs Destroyed . | . . . . . Combat | -11 -10 -9 -9 -9 -------- Run | Scr Mat Mat Sto Gar Damage Taken 1970 | . 449 394 998 129 Core 506 | . 104 40 318 44 Absorbed by Shields . | . . . . . Core Remaining (%) 79 | 100 58 . . . Volleys Fired 83 | . 34 32 17 . Largest 2 | . 2 2 1 . Hottest 60 | . 60 40 50 . Shots Fired 146 | . 68 61 17 . Gun 137 | . 68 61 8 . Cannon 9 | . . . 9 . Launcher . | . . . . . Special . | . . . . . Kinetic 128 | . 58 61 9 . Thermal 8 | . . . 8 . Explosive . | . . . . . Electromagnetic 10 | . 10 . . . Robot Hit Streak 10 | . 10 5 8 . Robot Miss Streak 3 | . 3 2 1 . Penetration Max . | . . . . . Secondary Targets 1 | . 1 . . . Max Gunslinging Chain 1 | . 1 . . . Shots Hit Robots 104 | . 50 40 14 . Core Hits 37 | . 18 18 1 . Critical Hits 3 | . 1 2 . . Critical Kills 1 | . . 1 . . Critical Parts Destroyed 2 | . 1 1 . . Melee Attacks . | . . . . . Impact . | . . . . . Slashing . | . . . . . Piercing . | . . . . . Sneak Attacks . | . . . . . Combat Hostiles . | . . . . . Follow-up Attacks . | . . . . . Damage Inflicted 1243 | . 620 363 260 . Guns 936 | . 501 361 74 . Cannons 179 | . . . 179 . Explosions 119 | . 119 . . . Melee . | . . . . . Ramming 9 | . . 2 7 . Kinetic 961 | . 421 361 179 . Thermal 193 | . 119 . 74 . Explosive . | . . . . . Electromagnetic 80 | . 80 . . . Impact . | . . . . . Slashing . | . . . . . Piercing . | . . . . . Highest Corruption 1 | . . . 1 1 Average Corruption 1 | . . . 1 1 Corruption Purged . | . . . . . Overload Shots . | . . . . . Overflow Damage 27 | . 12 . 15 . Projectiles 15 | . . . 15 . Explosions 12 | . 12 . . . Melee . | . . . . . Knockbacks 5 | . . . 5 . Impact . | . . . . . Kinetic 4 | . . . 4 . Secondary 1 | . . . 1 . Self-Inflicted Damage 30 | . 26 1 3 . Shots 1 | . 1 . . . Rammed 4 | . . 1 3 . Targets Rammed 5 | . . 1 4 . Kicked 1 | . . . 1 . Crushed . | . . . . . Highest Temperature 286 | . 66 7 286 . Average Temperature 61 | . 21 4 104 . Received Heat Transfer 864 | . 240 90 462 72 Effects 1 | . . . 1 . Interference 1 | . . . 1 . Siege Activations . | . . . . . Robots Corrupted . | . . . . . Combat Hostiles . | . . . . . Parts Fried . | . . . . . Impact Corruptions . | . . . . . Robots Melted . | . . . . . Combat Hostiles . | . . . . . Parts Melted . | . . . . . Heat Transferred 372 | . 150 . 222 . Parts Sabotaged . | . . . . . Parts Stolen . | . . . . . Parts Stripped . | . . . . . Power Chain Reactions 1 | . 1 . . . Missiles Intercepted . | . . . . . Alert | -11 -10 -9 -9 -9 ------- Run | Scr Mat Mat Sto Gar Peak Influence 354 | . 165 354 62 15 Initial 69 | . . 69 62 . Average 101 | . 76 197 47 8 Maximum Alert Level 1 | . . 1 . . Low Security (%) 86 | 100 100 57 100 100 Level 1 13 | . . 42 . . Level 2 . | . . . . . Level 3 . | . . . . . Level 4 . | . . . . . Level 5 . | . . . . . High Security . | . . . . . Max Security . | . . . . . Squads Dispatched 4 | . 2 1 1 . Investigation 1 | . 1 . . . Extermination . | . . . . . Reinforcement 3 | . 1 1 1 . Assault . | . . . . . Garrison . | . . . . . Intercept . | . . . . . Construction Impeded . | . . . . . Haulers Reinforced . | . . . . . Stealth | -11 -10 -9 -9 -9 --------- Run | Scr Mat Mat Sto Gar Distress Signals 5 | . 1 2 2 . Communications Jammed . | . . . . . Distress Signals . | . . . . . Times Spotted 54 | . 21 15 15 3 Peak Tracking Total 15 | . 4 5 15 3 Tactical Retreats 4 | . 3 1 . . Traps | -11 -10 -9 -9 -9 ------- Run | Scr Mat Mat Sto Gar Traps Triggered 1 | . 1 . . . Indirectly . | . . . . . Trap Hack Attempts . | . . . . . Triggered . | . . . . . Disarmed . | . . . . . Reprogrammed . | . . . . . Reused . | . . . . . Traps Extracted . | . . . . . Installed . | . . . . . Triggered . | . . . . . Machines | -11 -10 -9 -9 -9 ---------- Run | Scr Mat Mat Sto Gar Machines Disabled 1 | . 1 . . . Max in Single Turn 1 | . 1 . . . Machines Sabotaged . | . . . . . Garrisons Compromised . | . . . . . Overloaded Fab Kills . | . . . . . Fab Network Shutdowns . | . . . . . Hacking | -11 -10 -9 -9 -9 --------- Run | Scr Mat Mat Sto Gar Machines Accessed 5 | . 3 1 1 . Terminals 1 | . 1 . . . Fabricators . | . . . . . Repair Stations 1 | . . 1 . . Recycling Units 2 | . 2 . . . Scanalyzers . | . . . . . Garrison Access 1 | . . . 1 . Total Hacks 8 | . 5 2 1 . Successful 8 | . 5 2 1 . Failed . | . . . . . Catastrophic . | . . . . . Database Lockouts . | . . . . . Manual . | . . . . . Terminals 2 | . 2 . . . Fabricators . | . . . . . Repair Stations 2 | . . 2 . . Recycling Units 3 | . 3 . . . Scanalyzers . | . . . . . Garrison Access 1 | . . . 1 . Terminal Hacks 2 | . 2 . . . Record 2 | . 2 . . . Fabricator Hacks . | . . . . . Repair Station Hacks 2 | . . 2 . . Scan Component 1 | . . 1 . . Repair 1 | . . 1 . . Recycling Unit Hacks 3 | . 3 . . . Report Inventory 2 | . 2 . . . Retrieve Components 1 | . 1 . . . Scanalyzer . | . . . . . Garrison Access Hacks 1 | . . . 1 . Unlock Access 1 | . . . 1 . Unauthorized Hacks . | . . . . . Terminals . | . . . . . Fabricators . | . . . . . Repair Stations . | . . . . . Recycling Units . | . . . . . Scanalyzers . | . . . . . Garrison Access . | . . . . . Data Cores Recovered . | . . . . . Used . | . . . . . Hacking Detections 3 | . 1 1 1 . Full Trace Events . | . . . . . Feedback Events . | . . . . . Feedback Blocked . | . . . . . Robot Schematics Acquired . | . . . . . Robots Built . | . . . . . Matter . | . . . . . Time . | . . . . . Total Robot Build Rating . | . . . . . Part Schematics Acquired . | . . . . . Parts Built . | . . . . . Matter . | . . . . . Time . | . . . . . Total Part Build Rating . | . . . . . Parts Repaired 1 | . . 1 . . Time 26 | . . 26 . . Parts Recycled . | . . . . . Recycled Matter . | . . . . . Retrieved Matter . | . . . . . Retrieved Components 6 | . 6 . . . Parts Scanalyzed . | . . . . . Part Schematics Acquired . | . . . . . Parts Damaged . | . . . . . Bothacking | -11 -10 -9 -9 -9 ------------ Run | Scr Mat Mat Sto Gar Used RIF Installer 1 | . . . . 1 Robots Hacked . | . . . . . Non-combat . | . . . . . Combat . | . . . . . Robot Hacks Applied . | . . . . . Relay Couplers Released . | . . . . . Robots Rewired . | . . . . . Allies Hacked . | . . . . . Hacks Repelled . | . . . . . Allies | -11 -10 -9 -9 -9 -------- Run | Scr Mat Mat Sto Gar Total Allies . | . . . . . Largest Group . | . . . . . Highest-Rated Group . | . . . . . Highest-Rated Ally . | . . . . . Total Orders . | . . . . . Ally Attacks . | . . . . . Total Damage . | . . . . . Kills . | . . . . . Allies Corrupted . | . . . . . Allies Melted . | . . . . . Intel | -11 -10 -9 -9 -9 ------- Run | Scr Mat Mat Sto Gar Robot Analysis Total . | . . . . . Derelict Logs Recovered . | . . . . . Drone Launches . | . . . . . Drone Recoveries . | . . . . . Exploration | -11 -10 -9 -9 -9 ------------- Run | Scr Mat Mat Sto Gar Turns Passed 1423 | 111 627 445 169 71 Spaces Moved 837 | 80 384 221 95 57 Core 14 | 8 . . 6 . Treads . | . . . . . Legs 823 | 72 384 221 89 57 Wheels . | . . . . . Hover . | . . . . . Flight . | . . . . . Fastest Speed 50 | 50 120 120 50 120 Average Speed 118 | 113 120 120 115 120 Slowest Speed 120 | 120 120 120 120 120 Overloaded Moves . | . . . . . Propulsion Burnouts . | . . . . . Robots Hopped . | . . . . . Cave-ins Triggered . | . . . . . Exploration Rate (%) 23 | 5 49 19 27 18 Regions Visited 4 Branch Regions 1 Pre-discovered Areas . | . . . . . Known Exits Taken 1 | . . . 1 . Unknown Exits Taken 3 | 1 1 1 . . Scrap Searched . | . . . . . Spaces Dug . | . . . . . Terrain Destroyed 2 | . 2 . . . Melee . | . . . . . Projectile . | . . . . . AOE 2 | . 2 . . . Terrain Rammed . | . . . . . Walls Destroyed . | . . . . . Machines Disabled . | . . . . . Actions | -11 -10 -9 -9 -9 --------- Run | Scr Mat Mat Sto Gar Total 1131 | 99 490 348 134 60 Wait 135 | 3 46 79 7 . Move 833 | 79 383 220 94 57 Hop . | . . . . . Pick Up 11 | 5 5 1 . . Fast Attach 15 | 5 2 3 5 . Attach 10 | 4 2 1 . 3 Detach 3 | 3 . . . . Swap 14 | . 9 5 . . Drop 17 | . 9 6 2 . Fire 83 | . 34 32 17 . Melee . | . . . . . Ram . | . . . . . Kick 5 | . . 1 4 . Crush . | . . . . . Escape Stasis . | . . . . . Rewire 5 | . . . 5 . Trap . | . . . . . Miscellaneous . | . . . . . Route ------- -11/Scrapyard -10/Materials -9/Materials (discovered 2 exits: *Sto x2) -9/Storage -9/Garrison History --------- Turn | Location | Event 76 | -11/Scrapyard | Discovered new exit (range 14) 112 | -11/Scrapyard | Entered Materials 316 | -10/Materials | Build established: Mutant 479 | -10/Materials | Discovered new exit (range 16) 739 | -10/Materials | Entered another Materials area 739 | -9/Materials | Evolved 2 slots: Propulsion x1, Utility x1 740 | -9/Materials | Discovered new exit (range 7) 852 | -9/Materials | Repaired Lgt. Assault Rifle 1098 | -9/Materials | Build established: Scavenger-Mutant 1168 | -9/Materials | Discovered new exit (range 2) 1184 | -9/Materials | Entered Storage 1325 | -9/Storage | Lost 4 parts (2u2w) 1346 | -9/Storage | Core integrity fell below 50% 1352 | -9/Storage | Core integrity fell below 20% 1353 | -9/Storage | Identified exit to Garrison 1353 | -9/Storage | Entered Garrison 1381 | -9/Garrison | Lost 6 parts (1p3n1u1w) 1386 | -9/Garrison | Triggered checkpoint 1419 | -9/Garrison | Installed Relay Interface Framework 1424 | -9/Garrison | Destroyed by G-34 Mercenary with Small Laser Last Messages --------------- 01344_ Hrd. Light Armor Plating destroyed. 01345_ U-05 Engineer lays Concrete. 01346_ Imp. Ion Engine destroyed. 01348_ Imp. Light Cannon destroyed. 01348_ U-05 Engineer lays Concrete. 01348_ Aluminum Leg destroyed. 01349_ K-01 Serf collects debris. 01350_ Imp. Aluminum Leg destroyed. 01352_ U-05 Engineer lays Concrete. 01353_ Connecting with Garrison Access... 01353_ Current location identified: Storage >>Unlock Access door unlocked. 01353_ EXIT=UNLOCKED: GARRISON 01353_ Connecting with Garrison Access... LOCATION=GARRISON GOAL=ESCAPE 01386_ Beams of light sweep through the air. An alarm sounds. 01418_ Initiating installation procedure... 01419_ Relay Interface Framework installed. Map ----- +----------------------------------------------------+ | ????" ?? #???????????????????????????? | | ????" ?? #???????????????????????????? | | ????? ?? #???????????????????????????? | | ??????? ?? ????????????????????????????? | | ????# ???# ?# #?????????????????????????????? | | ????# ## ## #?????????????????????????????? | | ????# #?????????????????????????????? | | ????# #?????????????????????????????? | | ????# #?????????????????????????????? | | ????## ##""""## ##?????????????????????????????? | | ???????????????# #??????????????????????????????? | | ???????????????# #??????????????????????????????? | | ???????????????# #??????????????????????????????? | | ???????????????# #??????????????????????????????? | | ???????????????# #??????????????????????????????? | | ???????????????# #??????????????????????????????? | | ???????????????# ########???????????????????????? | | ???????????????# #???????????????????????? | | ???????????????# #########???????????????? | | ???????????????######## #????????? | | ??????????????????????# #########???????????????? | | ??????????????????????# #???????????????????????? | | ??????????????????????#g #???????????????????????? | | ??????????????????????#gg#???????????????????????? | | ??????????????????????# ########????????????????? | | ??????????????????????# @ #""""#????????????????? | | ??????????????????????# "#????????????????? | | ??????????????????????# #""""#????????????????? | | ??????????????????????###########????????????????? | | ?????????????????????????????????????????????????? | | ?????????????????????????????????????????????????? | | ?????????????????????????????????????????????????? | | ?????????????????????????????????????????????????? | | ?????????????????????????????????????????????????? | | ?????????????????????????????????????????????????? | | ?????????????????????????????????????????????????? | | ?????????????????????????????????????????????????? | | ?????????????????????????????????????????????????? | | ?????????????????????????????????????????????????? | | ?????????????????????????????????????????????????? | | ?????????????????????????????????????????????????? | | ?????????????????????????????????????????????????? | | ?????????????????????????????????????????????????? | | ?????????????????????????????????????????????????? | | ?????????????????????????????????????????????????? | | ?????????????????????????????????????????????????? | | ?????????????????????????????????????????????????? | | ?????????????????????????????????????????????????? | | ?????????????????????????????????????????????????? | | ?????????????????????????????????????????????????? | +----------------------------------------------------+ Best States ------------- Heat Dissipation 28 Energy Generation 14 Energy Capacity 265 Matter Stores 300 Matter Capacity 300 Sight Range 16 Terrain Scan Density 10 Additional Mass Support 6 Armor Coverage 300 Power Shielding 33 Evasion (%) 40 Item Schematics ----------------- None Robot Schematics ------------------ None Fabricated ------------ Nothing Alien Tech Used ----------------- None Achievements -------------- None Challenges ------------ None Game ------ Seed DerelictBiocellGreatsword Manual? 0 Play Time 00:26:42 Cumulative 1.6 hours Start 2021.03.12 @ 18:23:22 End 2021.03.12 @ 18:50:22 Sessions 1 Manual Loads 0 Difficulty Rogue Special Mode None Game No. 2 Rogue 2 Adventurer 0 Explorer 0 Win Type - Total 0 Types 0/0/0/0/0/0/0/0/0 Lore% 0 Gallery% 3 Achievement% 6 Wizard Run 0 Options --------- ASCII 0 Keyboard 1 Movement Vi Keybinds 0 Fullscreen 2 Font 18/SmallcapsGlow Map View 76x50 Tactical HUD 1 Map Filters NONE Filters NONE Steam 1 RUN: 41537cff-a37c-49fa-9198-3385d5f943da